bitfinex/quotes_SOLUSD_20250917
["timestamp","ask_amount","ask_price","bid_price","bid_amount"]
[1758118957795,0.72,235.17,235.16,0.06]
[1758118957994,33.82,235.17,235.16,0.06]
[1758118958198,36.67359223,235.17,235.16,0.06]
[1758118958813,38.20415025,235.17,235.16,0.06]
[1758118959213,35.35055802,235.17,235.16,0.06]
[1758118963830,2.25055802,235.17,235.16,0.06]
[1758118964029,35.35055802,235.17,235.16,0.06]
[1758118965309,2.25055802,235.17,235.16,0.06]
[1758118965520,35.37055802,235.17,235.16,0.06]
[1758118967908,2.25055802,235.17,235.16,0.06]
[1758118968209,2.25055802,235.19,235.16,4.31242388]
[1758118968416,7.08893798,235.23,235.16,4.98242388]
[1758118968417,0.72,235.21,235.16,4.98242388]
[1758118968619,33.12,235.2,235.16,4.98242388]
[1758118969025,33.84,235.2,235.16,4.31242388]
[1758118970030,1.53055802,235.21,235.16,4.98242388]
[1758118970237,33.84,235.2,235.16,4.31242388]
[1758118970728,0.72,235.23,235.17,0.67]
[1758118970936,1.53055802,235.19,235.16,0.06]
[1758118971424,0.72,235.18,235.16,0.06]
[1758118971631,33.12,235.17,235.16,0.06]
[1758118972247,33.84,235.17,235.16,0.06]
[1758118972827,33.12,235.17,235.16,4.31242388]
[1758118973416,33.12,235.17,235.16,4.98242388]
[1758118973623,2.25055802,235.22,235.16,15.61348358]
[1758118973937,33.12,235.21,235.16,15.61348358]
[1758118974135,33.84,235.21,235.16,15.61348358]
[1758118974347,33.12,235.21,235.17,0.67]
[1758118974637,1.53055802,235.22,235.17,0.67]
[1758118974841,0.72,235.25,235.18,0.67]
[1758118975139,33.12,235.24,235.18,2.20055802]
[1758118975333,0.72,235.23,235.17,1.53055802]
[1758118975640,2.25055802,235.23,235.16,15.61348358]
[1758118975837,34.65055802,235.24,235.17,0.67]
[1758118976337,33.12,235.24,235.18,16.41277589]
[1758118976732,0.72,235.25,235.18,14.88221787]
[1758118976933,33.12,235.23,235.18,15.55221787]
[1758118977132,33.84,235.23,235.18,15.55221787]
[1758118979148,33.84,235.23,235.19,0.71]
[1758118979525,33.84,235.23,235.18,14.88221787]
[1758118979720,33.1,235.22,235.19,2.24055802]
[1758118979925,33.1,235.21,235.18,14.88221787]
[1758118980141,33.1,235.21,235.19,0.71]
[1758118980725,33.1,235.21,235.18,14.88221787]
[1758118981128,33.1,235.21,235.18,10.63015562]
[1758118981530,33.1,235.21,235.18,11.34015562]
[1758118981733,33.1,235.21,235.19,0.71]
[1758118982621,33.1,235.21,235.17,17.12340871]
[1758118982850,33.1,235.21,235.18,0.71]
[1758118983250,33.1,235.21,235.19,4.25188145]
[1758118983550,0.72,235.2,235.17,4.25207811]
[1758118983730,33.1,235.21,235.17,4.25207811]
[1758118983932,1.53055802,235.18,235.16,0.06]
[1758118984344,1.53055802,235.19,235.16,0.06]
[1758118984748,1.53055802,235.17,235.16,0.06]
[1758118985132,2.20055802,235.17,235.16,0.06]
[1758118985639,0.67,235.17,235.16,0.06]
[1758118985844,1.53055802,235.18,235.16,4.31242388]
[1758118986148,1.53055802,235.19,235.16,4.31242388]
[1758118986452,33.1,235.18,235.16,4.31242388]
[1758118987859,1.53055802,235.2,235.16,4.98242388]
[1758118988165,33.1,235.19,235.16,15.61348358]
[1758118988360,33.1,235.19,235.16,14.94348358]
[1758118988734,33.77,235.19,235.16,14.94348358]
[1758118988941,2.20055802,235.18,235.16,0.06]
[1758118989136,1.53055802,235.17,235.16,0.06]
[1758118989354,2.20055802,235.17,235.16,0.06]
[1758118989641,4.38149362,235.18,235.16,0.06]
[1758118989947,4.38149362,235.18,235.16,4.3124046]
[1758118989948,5.05149362,235.18,235.16,4.3124046]
[1758118990760,3.5209356,235.18,235.16,4.3124046]
[1758118991345,36.6209356,235.17,235.16,4.3124046]
[1758118991659,35.9509356,235.17,235.16,0.06]
[1758118991961,35.9509356,235.17,235.16,4.31242388]
[1758118992664,35.9509356,235.17,235.16,0.06]
[1758118992857,35.9509356,235.17,235.16,4.31242388]
[1758118994158,38.15149362,235.17,235.16,0.06]
[1758118994362,37.48149362,235.17,235.16,0.06]
[1758118994661,35.9509356,235.17,235.16,0.06]
[1758118994859,35.9509356,235.17,235.16,4.31242388]
[1758118995553,36.6209356,235.17,235.16,4.31242388]
[1758118995947,35.9509356,235.17,235.16,4.31242388]
[1758118996142,38.15149362,235.17,235.16,0.06]
[1758118996342,36.6209356,235.17,235.16,0.06]
[1758118996549,35.9509356,235.17,235.16,0.06]
[1758118998369,35.9509356,235.17,235.16,4.31242388]
[1758118999352,2.8509356,235.17,235.16,4.98242388]
[1758118999556,35.9509356,235.17,235.16,4.98242388]
[1758119000071,2.8509356,235.17,235.16,4.98242388]
[1758119000255,35.9509356,235.17,235.16,4.98242388]
[1758119000453,33.1,235.17,235.16,4.98242388]
[1758119000772,35.96235664,235.17,235.16,4.98242388]
[1758119000954,33.1,235.17,235.16,4.98242388]
[1758119001155,3.54417904,235.24,235.16,17.1440416]
[1758119001372,4.75642791,235.27,235.22,1.53055802]
[1758119001373,2.86223621,235.23,235.22,1.53055802]
[1758119001558,33.1,235.23,235.22,2.20055802]
[1758119002853,33.1,235.23,235.22,6.45189719]
[1758119003760,33.1,235.23,235.22,4.92133917]
[1758119004150,33.1,235.23,235.22,4.25133917]
[1758119004795,33.1,235.23,235.19,4.25188145]
[1758119004796,33.77,235.23,235.19,4.25188145]
[1758119004966,3.52987037,235.22,235.19,4.25188145]
[1758119006080,5.92353294,235.21,235.18,4.25206225]
[1758119006281,35.95987037,235.2,235.18,4.25206225]
[1758119006488,33.1,235.2,235.18,4.25206225]
[1758119006882,33.77,235.2,235.18,4.25206225]
[1758119007891,33.1,235.2,235.18,4.25206225]
[1758119008295,33.1,235.2,235.17,4.25224305]
[1758119008588,33.1,235.2,235.17,4.92224305]
[1758119008773,33.1,235.2,235.17,4.25224305]
[1758119009500,5.92505031,235.19,235.16,0.06]
[1758119009804,5.25505031,235.18,235.16,0.06]
[1758119010090,33.08,235.17,235.16,4.31242388]
[1758119010289,35.94172502,235.17,235.16,4.31242388]
[1758119010799,35.94172502,235.17,235.16,0.06]
[1758119010994,35.94172502,235.17,235.16,4.31242388]
[1758119012970,0.67,235.25,235.16,18.00714615]
[1758119013172,35.94281567,235.24,235.21,2.39366257]
[1758119013377,2.86281567,235.23,235.21,2.39366257]
[1758119013571,2.86281567,235.22,235.2,2.39366257]
[1758119013772,35.94281567,235.21,235.2,2.39366257]
[1758119013978,35.94281567,235.21,235.2,3.05366257]
[1758119014186,2.86281567,235.21,235.2,3.05366257]
[1758119014490,33.08,235.24,235.21,14.8803197]
[1758119014687,2.86281567,235.23,235.22,3.05366257]
[1758119014986,2.86281567,235.23,235.22,2.39366257]
[1758119015877,2.86281567,235.23,235.22,6.64500174]
[1758119016596,2.86281567,235.23,235.22,7.30500174]
[1758119017172,33.08,235.24,235.22,7.30500174]
[1758119017371,33.08,235.24,235.23,0.66]
[1758119017599,33.08,235.24,235.23,3.05366257]
[1758119018289,33.08,235.24,235.23,7.30482101]
[1758119018997,33.08,235.25,235.23,17.93271711]
[1758119020287,11.14238626,235.28,235.23,17.93271711]
[1758119020495,35.94028962,235.27,235.24,0.66]
[1758119020693,2.86028962,235.26,235.25,3.05366257]
[1758119021289,10.43238626,235.28,235.25,3.05366257]
[1758119021489,46.37205303,235.28,235.25,3.05366257]
[1758119021690,2.85958283,235.27,235.25,2.39366257]
[1758119022103,2.85958283,235.27,235.26,4.25061633]
[1758119023305,43.51238626,235.28,235.26,4.25061633]
[1758119023984,43.51238626,235.28,235.27,3.05366257]
[1758119024495,43.51238626,235.28,235.27,2.39366257]
[1758119024879,43.51238626,235.28,235.27,3.05366257]
[1758119025998,43.51238626,235.28,235.27,6.64409823]
[1758119027393,10.43238626,235.28,235.27,6.64409823]
[1758119027588,10.43238626,235.28,235.27,4.25043566]
[1758119029409,43.49238626,235.28,235.27,6.64409823]
[1758119033308,10.43238626,235.28,235.27,6.64409823]
[1758119033520,43.49238626,235.28,235.27,6.64409823]
[1758119034292,43.49238626,235.28,235.27,4.25043566]
[1758119035687,43.49238626,235.28,235.27,2.39366257]
[1758119036600,43.49238626,235.28,235.26,4.25061633]
[1758119036794,43.49238626,235.28,235.27,2.39366257]
[1758119038610,10.43238626,235.28,235.27,6.64409823]
[1758119038804,43.49238626,235.28,235.27,6.64409823]
[1758119039202,43.49238626,235.28,235.27,4.25043566]
[1758119039400,43.49238626,235.28,235.27,6.64409823]
[1758119040302,44.20238626,235.28,235.27,6.64409823]
[1758119040812,44.20238626,235.28,235.27,4.25043566]
[1758119040991,43.49238626,235.28,235.27,4.25043566]
[1758119041696,10.43238626,235.28,235.27,7.41409823]
[1758119041912,10.43238626,235.28,235.27,21.00969224]
[1758119042221,0.03,235.29,235.28,13.59559401]
[1758119042506,0.03,235.29,235.28,16.69925658]
[1758119042716,0.03,235.29,235.28,20.94951159]
[1758119045815,0.03,235.29,235.28,18.55584902]
[1758119046012,0.03,235.29,235.28,20.94951159]
[1758119046206,0.03,235.29,235.28,4.25025501]
[1758119046414,0.71,235.29,235.27,4.31042703]
[1758119046727,0.68,235.28,235.27,4.31042703]
[1758119048821,0.03,235.29,235.27,4.31042703]
[1758119049117,0.71,235.29,235.27,4.31042703]
[1758119049306,0.71,235.29,235.27,6.7040896]
[1758119049307,0.03,235.29,235.27,6.7040896]
[1758119049507,0.03,235.29,235.28,16.68925658]
[1758119050419,0.03,235.29,235.27,4.31042703]
[1758119050420,0.71,235.29,235.27,4.31042703]
[1758119051322,0.03,235.29,235.27,4.31042703]
[1758119051620,0.68,235.28,235.27,4.31042703]
[1758119052204,0.03,235.29,235.27,4.31042703]
[1758119053316,0.68,235.28,235.27,4.31042703]
[1758119053922,0.03,235.29,235.27,4.31042703]
[1758119054334,0.03,235.29,235.28,2.39366257]
[1758119055123,0.03,235.29,235.27,6.7040896]
[1758119055301,0.71,235.29,235.27,4.31042703]
[1758119055609,0.68,235.28,235.27,4.31042703]
[1758119056022,0.03,235.29,235.27,4.31042703]
[1758119056520,0.68,235.28,235.27,0.06]
[1758119056709,0.03,235.29,235.27,0.06]
[1758119056906,0.71,235.29,235.27,4.31043566]
[1758119057117,0.68,235.28,235.27,4.31043566]
[1758119057715,0.03,235.29,235.27,4.31043566]
[1758119057921,0.71,235.29,235.27,4.31043566]
[1758119058621,0.03,235.29,235.27,4.31043566]
[1758119058940,0.68,235.28,235.27,4.31043566]
[1758119059513,0.03,235.29,235.27,4.31043566]
[1758119059723,0.71,235.29,235.27,4.31043566]
[1758119062131,0.68,235.28,235.27,4.31043566]
[1758119062642,0.68,235.28,235.27,0.06]
[1758119063141,0.68,235.28,235.27,4.31043566]
[1758119063844,0.68,235.28,235.27,0.06]
[1758119063845,3.54194796,235.28,235.27,0.06]
[1758119064143,3.54194796,235.28,235.27,4.31043566]
[1758119066347,2.86194796,235.28,235.27,4.31043566]
[1758119069650,0.03,235.29,235.27,6.54217391]
[1758119069875,0.03,235.29,235.28,2.23173825]
[1758119070033,0.03,235.29,235.28,15.82733226]
[1758119070522,0.03,235.29,235.28,14.29559401]
[1758119070722,0.03,235.29,235.28,15.82733226]
[1758119071235,0.03,235.29,235.28,20.07758727]
[1758119083855,0.03,235.29,235.28,21.77953387]
[1758119086061,0.03,235.29,235.28,20.07758727]
[1758119087862,0.03,235.29,235.28,21.77953388]
[1758119090004,0.03,235.29,235.28,101.27953388]
[1758119090285,0.03,235.29,235.28,107.40648688]
[1758119090584,0.03,235.29,235.28,101.27953388]
[1758119092086,0.03,235.29,235.28,130.34584902]
[1758119092293,0.71,235.29,235.28,98.87758727]
[1758119095194,0.03,235.29,235.28,98.87758727]
[1758119095862,0.03,235.29,235.28,19.37758727]
[1758119096293,0.03,235.29,235.28,20.15758727]
[1758119096589,0.03,235.29,235.28,19.43758727]
[1758119097580,63.81303,235.29,235.28,19.43758727]
[1758119098478,64.48303,235.29,235.28,19.43758727]
[1758119098677,63.81303,235.29,235.28,19.43758727]
[1758119099083,64.48303,235.29,235.28,19.43758727]
[1758119099495,63.81303,235.29,235.28,19.43758727]
[1758119100072,64.48303,235.29,235.28,19.43758727]
[1758119101487,63.81303,235.29,235.28,19.43758727]
[1758119102695,63.81303,235.29,235.28,17.90584902]
[1758119103001,64.48303,235.29,235.28,19.43758727]
[1758119103202,64.48303,235.29,235.28,17.90584902]
[1758119103497,64.48303,235.29,235.28,19.43758727]
[1758119103672,64.48303,235.29,235.28,17.90584902]
[1758119103876,63.81303,235.29,235.28,19.43758727]
[1758119104685,64.47303,235.29,235.28,17.90584902]
[1758119105209,64.47303,235.29,235.28,0.06]
[1758119105501,64.47303,235.29,235.28,4.31025501]
[1758119106204,64.47303,235.29,235.28,5.84199326]
[1758119107799,64.47303,235.29,235.28,4.31025501]
[1758119108121,64.47303,235.29,235.28,5.84199326]
[1758119108579,64.47303,235.29,235.28,4.31025501]
[1758119108781,64.47303,235.29,235.28,0.06]
[1758119109389,67.33383188,235.29,235.28,4.31025501]
[1758119109887,64.47303,235.29,235.28,4.31025501]
[1758119113825,97.45303,235.29,235.28,4.31025501]
[1758119114811,63.81303,235.29,235.28,5.84199326]
[1758119115015,63.81303,235.29,235.28,6.53199326]
[1758119115224,63.81303,235.29,235.28,20.12758727]
[1758119115730,63.81303,235.29,235.28,18.59584902]
[1758119115908,63.81303,235.29,235.28,20.12758727]
[1758119117619,63.81303,235.29,235.28,19.43758727]
[1758119117999,64.47303,235.29,235.28,19.43758727]
[1758119118197,64.47303,235.29,235.28,4.31025501]
[1758119119314,64.47303,235.29,235.28,3.81025501]
[1758119119617,63.81303,235.29,235.28,5.34199326]
[1758119119817,63.81303,235.29,235.28,6.03199326]
[1758119120116,63.81303,235.29,235.28,5.34199326]
[1758119120295,64.47303,235.29,235.28,5.34199326]
[1758119120617,63.81303,235.29,235.28,5.34199326]
[1758119120917,64.47303,235.29,235.28,5.34199326]
[1758119121112,63.81303,235.29,235.28,5.34199326]
[1758119122203,1e-08,235.32,235.29,13.59559401]
[1758119122398,1e-08,235.32,235.31,15.12733226]
[1758119123013,1e-08,235.32,235.31,15.81733226]
[1758119123725,1.53173825,235.42,235.31,15.81733226]
[1758119123726,0.69,235.4,235.32,13.59559401]
[1758119123891,33.65,235.4,235.37,1.53173825]
[1758119124095,0.69,235.38,235.37,4.24862981]
[1758119124395,0.69,235.38,235.37,5.78036806]
[1758119125006,0.69,235.38,235.36,1.53173825]
[1758119125209,0.66,235.37,235.36,1.53173825]
[1758119125402,0.66,235.37,235.36,5.78054858]
[1758119125903,0.66,235.37,235.36,6.63958884]
[1758119127120,0.66,235.37,235.36,4.24881033]
[1758119127300,36.01077851,235.37,235.3,2.39077851]
[1758119127501,3.05077851,235.36,235.3,4.24989375]
[1758119127700,0.66,235.35,235.31,2.39077851]
[1758119128022,33.62,235.34,235.3,6.64067226]
[1758119128209,0.66,235.33,235.3,6.64067226]
[1758119128405,0.66,235.33,235.31,2.39077851]
[1758119128596,33.62,235.37,235.32,2.39077851]
[1758119128799,33.62,235.37,235.34,2.39077851]
[1758119128999,33.62,235.37,235.35,6.63976937]
[1758119129412,33.62,235.37,235.36,2.39077851]
[1758119129413,32.96,235.37,235.36,2.39077851]
[1758119129970,0.03,235.38,235.36,2.39077851]
[1758119130109,0.03,235.38,235.35,14.87146802]
[1758119130435,0.03,235.38,235.37,2.39077851]
[1758119130929,0.69,235.38,235.33,4.24935197]
[1758119131232,0.66,235.37,235.33,14.8727319]
[1758119131407,0.66,235.36,235.33,14.8727319]
[1758119131602,0.66,235.36,235.33,17.26351041]
[1758119132018,0.03,235.38,235.35,2.39077851]
[1758119132230,32.99,235.38,235.33,14.8727319]
[1758119132427,0.66,235.37,235.36,2.39077851]
[1758119132629,0.66,235.37,235.35,2.39077851]
[1758119132817,32.99,235.38,235.36,2.39077851]
[1758119133019,0.03,235.38,235.37,4.24862981]
[1758119133206,0.03,235.38,235.37,6.63940832]
[1758119133822,0.03,235.38,235.37,4.24862981]
[1758119134020,0.03,235.38,235.35,0.69]
[1758119134021,0.7,235.38,235.35,4.24881931]
[1758119134330,0.67,235.37,235.35,4.24881931]
[1758119134525,0.67,235.36,235.35,4.24881931]
[1758119134733,0.03,235.38,235.35,17.98207498]
[1758119134936,0.03,235.38,235.37,2.39077851]
[1758119135249,0.03,235.38,235.37,4.24862981]
[1758119135429,0.03,235.38,235.37,6.63940832]
[1758119135823,0.03,235.38,235.37,4.24862981]
[1758119136128,0.7,235.38,235.35,4.2488316]
[1758119136320,0.7,235.38,235.25,100.813428]
[1758119136321,0.67,235.37,235.34,2.39077851]
[1758119137125,0.03,235.38,235.35,14.87146802]
[1758119137328,0.67,235.37,235.35,14.87146802]
[1758119137522,0.03,235.38,235.35,14.87146802]
[1758119137852,0.7,235.38,235.35,14.87146802]
[1758119138240,0.67,235.37,235.35,14.87146802]
[1758119138550,0.03,235.38,235.35,14.87146802]
[1758119139238,0.7,235.38,235.35,14.87146802]
[1758119139441,0.03,235.38,235.35,14.87146802]
[1758119139646,0.7,235.38,235.35,14.87146802]
[1758119139835,0.67,235.37,235.35,14.87146802]
[1758119140036,0.03,235.38,235.35,14.87146802]
[1758119140439,0.7,235.38,235.35,14.87146802]
[1758119140834,0.67,235.37,235.35,14.87146802]
[1758119141222,0.03,235.38,235.35,14.87146802]
[1758119142055,0.03,235.38,235.35,17.98224653]
[1758119142424,0.03,235.38,235.37,2.39077851]
[1758119142839,0.03,235.38,235.37,3.11077851]
[1758119143038,0.03,235.38,235.37,2.39077851]
[1758119144057,0.03,235.38,235.37,6.63940832]
[1758119145447,0.03,235.38,235.37,4.24862981]
[1758119145642,0.03,235.38,235.37,6.63940832]
[1758119145959,0.7,235.38,235.33,2.39077851]
[1758119146126,0.67,235.37,235.33,2.39077851]
[1758119146326,0.67,235.36,235.33,2.39077851]
[1758119146934,0.67,235.35,235.33,2.39077851]
[1758119147422,0.67,235.35,235.34,4.24917141]
[1758119147950,0.67,235.35,235.29,24.94045698]
[1758119148122,2.39077851,235.37,235.29,24.94045698]
[1758119148123,0.67,235.34,235.3,4.24989375]
[1758119148329,2.39077851,235.37,235.3,17.26540664]
[1758119148547,2.39077851,235.37,235.31,2.39077851]
[1758119148548,0.67,235.36,235.31,2.39077851]
[1758119148752,0.67,235.35,235.31,2.39077851]
[1758119149364,0.67,235.34,235.32,4.24953255]
[1758119149752,0.03,235.38,235.33,3.11077851]
[1758119149951,0.03,235.38,235.36,2.39077851]
[1758119150155,0.03,235.38,235.37,2.39077851]
[1758119154475,0.03,235.38,235.37,6.63940832]
[1758119154675,0.7,235.38,235.37,6.63940832]
[1758119154882,0.03,235.38,235.37,6.63940832]
[1758119155350,0.7,235.38,235.37,4.24862981]
[1758119155557,0.03,235.38,235.37,4.24862981]
[1758119155975,3.09077851,235.38,235.32,14.87313768]
[1758119156162,0.67,235.37,235.32,4.24953255]
[1758119156357,0.67,235.36,235.31,2.45077851]
[1758119156559,0.67,235.36,235.32,2.39077851]
[1758119156864,0.7,235.35,235.31,5.02968535]
[1758119157065,0.7,235.35,235.32,2.39077851]
[1758119157684,0.7,235.35,235.31,4.30968535]
[1758119157887,0.7,235.35,235.32,2.39077851]
[1758119158487,0.73,235.38,235.33,17.26351041]
[1758119158667,0.7,235.37,235.33,17.94351041]
[1758119159389,35.80638963,235.38,235.34,0.68]
[1758119159563,33.65,235.38,235.34,3.07077851]
[1758119159965,33.65,235.38,235.34,2.39077851]
[1758119160187,0.7,235.37,235.34,2.39077851]
[1758119160383,0.7,235.37,235.33,17.26351041]
[1758119160696,0.7,235.37,235.32,0.68]
[1758119160986,0.7,235.36,235.32,6.64022182]
[1758119161882,0.7,235.35,235.31,0.06]
[1758119162068,0.7,235.35,235.31,4.30969122]
[1758119162270,3.56025213,235.37,235.31,0.06]
[1758119162583,36.48025213,235.37,235.32,3.07077851]
[1758119162894,0.03,235.38,235.36,2.39077851]
[1758119163059,0.03,235.38,235.37,2.39077851]
[1758119163459,0.03,235.38,235.37,3.07077851]
[1758119164495,0.03,235.38,235.37,6.63940832]
[1758119165194,0.03,235.38,235.37,7.33940832]
[1758119165368,0.03,235.38,235.37,6.63940832]
[1758119166262,0.75,235.38,235.37,4.24862981]
[1758119166463,0.75,235.38,235.35,14.87135877]
[1758119166686,0.72,235.37,235.35,4.24899086]
[1758119166992,0.72,235.36,235.35,4.24899086]
[1758119167789,0.72,235.36,235.33,4.24935197]
[1758119168588,0.72,235.35,235.33,4.24935197]
[1758119168883,0.72,235.34,235.33,4.24935197]
[1758119169272,3.58358076,235.34,235.33,4.24935197]
[1758119170278,0.72,235.34,235.33,4.24935197]
[1758119170790,32.92,235.36,235.33,4.24935197]
[1758119170973,3.58320346,235.35,235.33,4.24935197]
[1758119171181,0.72,235.35,235.33,4.24935197]
[1758119171472,0.72,235.34,235.33,4.24935197]
[1758119172664,0.72,235.34,235.32,0.06]
[1758119172665,5.97369994,235.34,235.32,0.06]
[1758119172877,5.25369994,235.33,235.32,0.06]
[1758119173293,5.97369994,235.33,235.32,0.06]
[1758119174407,10.22305191,235.33,235.32,0.06]
[1758119175422,5.97369994,235.33,235.32,0.06]
[1758119175602,10.22305191,235.33,235.32,0.06]
[1758119176529,7.36013048,235.33,235.32,0.06]
[1758119176694,0.72,235.33,235.32,0.06]
[1758119176894,5.97369994,235.33,235.32,0.06]
[1758119177406,36.03077851,235.33,235.32,0.06]
[1758119177609,38.89369994,235.33,235.32,0.06]
[1758119178194,43.14305191,235.33,235.32,0.06]
[1758119179507,38.89369994,235.33,235.32,0.06]
[1758119179707,43.14305191,235.33,235.32,0.06]
[1758119180321,38.89369994,235.33,235.32,0.06]
[1758119180735,43.14305191,235.33,235.32,0.06]
[1758119181330,38.89369994,235.33,235.32,0.06]
[1758119181509,43.14305191,235.33,235.32,0.06]
[1758119183611,56.73864592,235.33,235.32,0.06]
[1758119183924,13.59559401,235.32,235.31,0.06]
[1758119184232,21.24007246,235.32,235.31,0.06]
[1758119184608,23.66332354,235.32,235.31,0.06]
[1758119185205,27.91285609,235.32,235.31,0.06]
[1758119185407,42.11367788,235.32,235.28,0.06]
[1758119185630,15.98637252,235.29,235.28,0.06]
[1758119185932,50.91130253,235.29,235.28,0.06]
[1758119186133,51.63130253,235.29,235.28,0.06]
[1758119186532,53.33469867,235.29,235.28,0.06]
[1758119187339,57.58477304,235.29,235.28,0.06]
[1758119187535,56.05198595,235.29,235.28,0.06]
[1758119187739,57.58477304,235.29,235.28,0.06]
[1758119187939,23.13198595,235.29,235.28,0.06]
[1758119188114,4.39570852,235.29,235.28,0.06]
[1758119188315,35.17278709,235.29,235.28,0.06]
[1758119188634,42.28578289,235.29,235.28,0.06]
[1758119189643,38.03570852,235.29,235.28,0.06]
[1758119190016,38.03570852,235.29,235.24,0.06]
[1758119190017,13.59559401,235.28,235.24,0.06]
[1758119190222,50.91130253,235.27,235.22,0.06]
[1758119190424,15.1283811,235.23,235.22,0.06]
[1758119190623,48.0483811,235.23,235.22,0.06]
[1758119190824,51.63130253,235.23,235.22,0.06]
[1758119191220,55.88246097,235.23,235.22,0.06]
[1758119192022,54.34967388,235.23,235.22,0.06]
[1758119192229,55.88246097,235.23,235.22,0.06]
[1758119193862,39.42394553,235.23,235.22,0.06]
[1758119194047,37.89115844,235.23,235.22,0.06]
[1758119194225,39.42394553,235.23,235.22,0.06]
[1758119195130,35.17278709,235.23,235.22,0.06]
[1758119195358,39.42394553,235.23,235.22,0.06]
[1758119196838,34.45278709,235.23,235.22,0.06]
[1758119197033,35.16278709,235.23,235.22,0.06]
[1758119197241,34.47278709,235.23,235.22,0.06]
[1758119197439,1.53278709,235.23,235.22,0.06]
[1758119197639,34.47278709,235.23,235.22,0.06]
[1758119198641,1.70375892,235.26,235.22,6.50408405]
[1758119198856,32.94,235.25,235.23,2.19278709]
[1758119199033,32.94,235.25,235.24,0.66]
[1758119199434,32.94,235.25,235.24,6.44376481]
[1758119199952,32.94,235.25,235.24,4.91097772]
[1758119200256,136.01129696,235.31,235.24,4.91097772]
[1758119200456,32.94,235.3,235.25,2.19278709]
[1758119200644,33.65,235.29,235.23,0.66]
[1758119200962,32.94,235.29,235.24,0.66]
[1758119201140,32.94,235.29,235.25,0.66]
[1758119201649,33.65,235.29,235.25,0.66]
[1758119201847,35.18278709,235.29,235.23,0.66]
[1758119202037,34.47278709,235.29,235.23,4.91114224]
[1758119202232,32.94,235.29,235.24,2.19278709]
[1758119202432,32.94,235.29,235.25,0.66]
[1758119203245,37.90014324,235.29,235.23,5.78392933]
[1758119203542,37.90014324,235.29,235.23,6.44392933]
[1758119203747,39.43293033,235.29,235.23,6.44392933]
[1758119204360,35.18278709,235.29,235.23,6.44392933]
[1758119204939,35.18278709,235.29,235.23,4.91114224]
[1758119205339,34.47278709,235.29,235.24,0.66]
[1758119205662,33.68,235.29,235.24,0.66]
[1758119205975,32.97,235.29,235.25,0.66]
[1758119206155,0.03,235.29,235.26,2.19278709]
[1758119206359,32.92,235.28,235.25,1.53278709]
[1758119206555,32.92,235.28,235.27,0.66]
[1758119207042,32.92,235.28,235.25,2.19278709]
[1758119207241,32.92,235.28,235.26,0.66]
[1758119207446,0.03,235.29,235.26,0.66]
[1758119207645,32.92,235.28,235.27,0.66]
[1758119208055,32.92,235.28,235.26,4.25048054]
[1758119208361,32.92,235.28,235.26,4.91048054]
[1758119208562,32.92,235.28,235.26,6.44326763]
[1758119208869,32.92,235.28,235.26,2.19278709]
[1758119209070,32.92,235.28,235.25,5.78347191]
[1758119209374,0.03,235.29,235.27,2.19278709]
[1758119209672,32.92,235.28,235.27,0.66]
[1758119210188,32.92,235.28,235.27,4.91043566]
[1758119210550,32.92,235.28,235.27,6.44322275]
[1758119212266,32.95,235.29,235.27,6.44322275]
[1758119212478,32.95,235.29,235.28,2.19278709]
[1758119212650,0.03,235.29,235.28,2.19278709]
[1758119212852,0.03,235.29,235.28,15.7883811]
[1758119213272,0.03,235.29,235.28,21.91952946]
[1758119213485,0.03,235.29,235.28,15.7883811]
[1758119213683,1e-08,235.32,235.29,13.59559401]
[1758119213977,1e-08,235.32,235.31,15.1283811]